Workbook

Sheet 6 дней без курицей
A1: СОГЛАСОВАНО | O1: УТВЕРЖДЕНО
A2: ____________________________
A3: ____________________________
A5: Меню для организации питания детей от 1 до 7 лет, посещающих дошкольные образовательные учреждения Мензелинского района РТ на 2025г.(6 дней без курицы)
A7: 1 день, 1 неделя
A9: № рецептуры | B9: Название блюда | C9: Масса | D9: Белки | E9: Жиры | F9: Углеводы | G9: Энергетическая ценность | H9: B1 | I9: B2 | J9: A | K9: D | L9: C | M9: Na | N9: K | O9: Ca | P9: Mg | Q9: P | R9: Fe | S9: I | T9: Se | U9: F
C10: г | D10: г | E10: г | F10: г | G10: ккал | H10: мг | I10: мг | J10: мкг рет.экв | K10: мкг | L10: мг | M10: мг | N10: мг | O10: мг | P10: мг | Q10: мг | R10: мг | S10: мкг | T10: мкг | U10: мкг
B11: Понедельник, 1 неделя
B12: Завтрак | C12: 1-7
A13: 54-9к-2020 | B13: Каша вязкая молочная овсяная | C13: 180 | D13: 7.7 | E13: 10.1 | F13: 30.9 | G13: 245.6 | H13: 0.19 | I13: 0.16 | J13: 36.18 | K13: 0.12 | L13: 0.47 | M13: 311.99 | N13: 246.64 | O13: 141.88 | P13: 56.55 | Q13: 210.04 | R13: 1.65 | S13: 46.13 | T13: 13.11 | U13: 56.05
A14: 54-4гн-2020 | B14: Чай с молоком и сахаром | C14: 150 | D14: 1.1 | E14: 0.8 | F14: 6.4 | G14: 37.7 | H14: 0.01 | I14: 0.05 | J14: 5.06 | K14: 0 | L14: 0.21 | M14: 14.52 | N14: 53.29 | O14: 75.98 | P14: 6 | Q14: 32.05 | R14: 0.31 | S14: 3.38 | T14: 0.66 | U14: 7.5
A15: Пром. | B15: Батон простой | C15: 20 | D15: 1.6 | E15: 0.2 | F15: 9.8 | G15: 47.5 | H15: 0.03 | I15: 0.01 | J15: 0 | K15: 0 | L15: 0 | M15: 88.6 | N15: 27.2 | O15: 4.6 | P15: 6.8 | Q15: 17.8 | R15: 0.4 | S15: 0.64 | T15: 1.2 | U15: 2.9
B16: Итого за Завтрак | C16: =SUM(C13:C15) -> 350 | D16: 10.4 | E16: 11.1 | F16: 47.1 | G16: 330.8 | H16: 0.23 | I16: 0.22 | J16: 41.24 | K16: 0.12 | L16: 0.68 | M16: 415.11 | N16: 327.13 | O16: 222.46 | P16: 69.35 | Q16: 259.89 | R16: 2.36 | S16: 50.15 | T16: 14.97 | U16: 66.45
B17: Второй завтрак
A18: Пром. | B18: Молоко 2.5% | C18: 150 | D18: 4.4 | E18: 3.8 | F18: 7.2 | G18: 80 | H18: 0.06 | I18: 0.23 | J18: 33 | K18: 0 | L18: 1.95 | M18: 75 | N18: 219 | O18: 180 | P18: 21 | Q18: 135 | R18: 0.15 | S18: 13.5 | T18: 3 | U18: 30
B19: Итого за Второй завтрак | C19: 150 | D19: 4.4 | E19: 3.8 | F19: 7.2 | G19: 80 | H19: 0.06 | I19: 0.23 | J19: 33 | K19: 0 | L19: 1.95 | M19: 75 | N19: 219 | O19: 180 | P19: 21 | Q19: 135 | R19: 0.15 | S19: 13.5 | T19: 3 | U19: 30
B20: Обед
A21: 54-7з-2020 | B21: Салат из белокочанной капусты с растительным маслом | C21: 50 | D21: 1.27 | E21: 5.08 | F21: 5.2 | G21: 71.5 | H21: 0.01 | I21: 0.02 | J21: 61.13 | K21: 0 | L21: 11 | M21: 56 | N21: 171 | O21: 29 | P21: 12 | Q21: 22 | R21: 0.3 | S21: 8.95 | T21: 0.2 | U21: 10.55
A22: 54-7с-2020 | B22: Суп картофельный с вермишелью | C22: 200 | D22: 5.2 | E22: 2.8 | F22: 18.5 | G22: 119.6 | H22: 0.09 | I22: 0.05 | J22: 97.51 | K22: 0 | L22: 6.89 | M22: 93.01 | N22: 410.42 | O22: 13.73 | P22: 20.84 | Q22: 54.56 | R22: 0.86 | S22: 16.76 | T22: 0.23 | U22: 32.72
A23: 54-9м-2020 | B23: Жаркое по-домашнему | C23: 150 | D23: 15 | E23: 14.1 | F23: 12.9 | G23: 238.4 | H23: 0.11 | I23: 0.14 | J23: 20.45 | K23: 0.06 | L23: 7.15 | M23: 218.14 | N23: 615.46 | O23: 19.64 | P23: 33.42 | Q23: 173.05 | R23: 2.58 | S23: 33.66 | T23: 0.3 | U23: 74.42
A24: 54-1хн-2020 | B24: Компот из смеси сухофруктов | C24: 150 | D24: 0.4 | E24: 0 | F24: 14.8 | G24: 60.7 | H24: 0 | I24: 0 | J24: 11.25 | K24: 0 | L24: 0.02 | M24: 0.04 | N24: 0.13 | O24: 81.06 | P24: 1.58 | Q24: 3.23 | R24: 0.06 | S24: 0 | T24: 0 | U24: 0
A25: Пром. | B25: Хлеб пшеничный | C25: 20 | D25: 1.5 | E25: 0.2 | F25: 9.8 | G25: 46.9 | H25: 0.02 | I25: 0.01 | J25: 0 | K25: 0 | L25: 0 | M25: 99.8 | N25: 18.6 | O25: 4 | P25: 2.8 | Q25: 13 | R25: 0.22 | S25: 0.64 | T25: 1.2 | U25: 2.9
A26: Пром. | B26: Хлеб ржаной | C26: 20 | D26: 1.3 | E26: 0.2 | F26: 6.7 | G26: 34.2 | H26: 0.04 | I26: 0.02 | J26: 0 | K26: 0 | L26: 0 | M26: 122 | N26: 49 | O26: 7 | P26: 9.4 | Q26: 31.6 | R26: 0.78 | S26: 0 | T26: 6.18 | U26: 0
B27: Итого за Обед | C27: =SUM(C21:C26) -> 590 | D27: =SUM(D21:D26) -> 24.67 | E27: 22.38 | F27: 67.9 | G27: 571.3 | H27: 0.27 | I27: 0.24 | J27: 190.34 | K27: 0.06 | L27: 25.06 | M27: 588.99 | N27: 1264.61 | O27: 154.43 | P27: 80.04 | Q27: 297.44 | R27: 4.8 | S27: 60.01 | T27: 8.11 | U27: 120.59
B28: Полдник
A29: 54-3гн -2020 | B29: Кисель | C29: 150 | D29: 0 | E29: 0 | F29: 9.5 | G29: 37.9 | H29: 0.03 | I29: 0.03 | J29: 9.37 | K29: 0 | L29: 1.59 | M29: 0.09 | N29: 1.18 | O29: 43.75 | P29: 0.1 | Q29: 0.08 | R29: 0.02 | S29: 0 | T29: 0 | U29: 0
A30: Пром. | B30: Сушка простая | C30: 15 | D30: 1.6 | E30: 0.2 | F30: 10.3 | G30: 49.6 | H30: 0.03 | I30: 0.01 | J30: 0 | K30: 0 | L30: 0 | M30: 90.75 | N30: 27.75 | O30: 4.5 | P30: 6.9 | Q30: 18.15 | R30: 0.44 | S30: 0 | T30: 0 | U30: 0
A31: Пром. | B31: Фрукт (яблоко, банан, апельсин) | C31: 100 | D31: 0.4 | E31: 0.4 | F31: 9.8 | G31: 44.4 | H31: 0.03 | I31: 0.02 | J31: 5 | K31: 0 | L31: 10 | M31: 26 | N31: 278 | O31: 16 | P31: 9 | Q31: 11 | R31: 2.2 | S31: 2 | T31: 0.3 | U31: 8
B32: Итого за Полдник | C32: =SUM(C29:C31) -> 265 | D32: =SUM(D29:D31) -> 2 | E32: 0.6 | F32: 29.6 | G32: 131.9 | H32: 0.09 | I32: 0.06 | J32: 14.37 | K32: 0 | L32: 11.59 | M32: 116.84 | N32: 306.93 | O32: 64.25 | P32: 16 | Q32: 29.23 | R32: 2.66 | S32: 2 | T32: 0.3 | U32: 8
B33: Итого за день | C33: =C16+C19+C27+C32 -> 1355 | D33: =D16+D19+D27+D32 -> 41.47 | E33: 37.88 | F33: 151.8 | G33: 1114 | H33: 0.65 | I33: 0.75 | J33: 278.95 | K33: 0.18 | L33: 39.28 | M33: 1195.94 | N33: 2117.67 | O33: 621.14 | P33: 186.39 | Q33: 721.56 | R33: 9.97 | S33: 125.66 | T33: 26.38 | U33: 225.04
A35: 2 день, 1 неделя
A36: № рецептуры | B36: Название блюда | C36: Масса | D36: Белки | E36: Жиры | F36: Углеводы | G36: Энергетическая ценность | H36: B1 | I36: B2 | J36: A | K36: D | L36: C | M36: Na | N36: K | O36: Ca | P36: Mg | Q36: P | R36: Fe | S36: I | T36: Se | U36: F
C37: г | D37: г | E37: г | F37: г | G37: ккал | H37: мг | I37: мг | J37: мкг рет.экв | K37: мкг | L37: мг | M37: мг | N37: мг | O37: мг | P37: мг | Q37: мг | R37: мг | S37: мкг | T37: мкг | U37: мкг
B38: Вторник, 1 неделя
B39: Завтрак | C39: 1-7
A40: 54-1з-2020 | B40: Сыр твердых сортов в нарезке | C40: 10 | D40: 2.3 | E40: 3 | F40: 0 | G40: 35.8 | H40: 0 | I40: 0.03 | J40: 26 | K40: 0.1 | L40: 0.07 | M40: 81 | N40: 8.8 | O40: 88 | P40: 3.5 | Q40: 50 | R40: 0.1 | S40: 0 | T40: 1.45 | U40: 0
A41: 54-6к-2020 | B41: Каша вязкая молочная пшенная | C41: 180 | D41: 7.48 | E41: 9.11 | F41: 33.88 | G41: 247.4 | H41: 0.17 | I41: 0.13 | J41: 37.47 | K41: 0.12 | L41: 0 | M41: 305 | N41: 194 | O41: 129 | P41: 43 | Q41: 167 | R41: 1.2 | S41: 46.44 | T41: 2.8 | U41: 31.57
A42: 54-21гн-2020 | B42: Какао с молоком | C42: 150 | D42: 2.6 | E42: 1.9 | F42: 8.3 | G42: 60.8 | H42: 0.02 | I42: 0.09 | J42: 9.94 | K42: 0 | L42: 0.39 | M42: 28.76 | N42: 119.2 | O42: 107.24 | P42: 17.45 | Q42: 71.55 | R42: 0.51 | S42: 6.75 | T42: 1.32 | U42: 20.51
A43: Пром. | B43: Батон простой | C43: 20 | D43: 1.6 | E43: 0.2 | F43: 9.8 | G43: 47.5 | H43: 0.03 | I43: 0.01 | J43: 0 | K43: 0 | L43: 0 | M43: 88.6 | N43: 27.2 | O43: 4.6 | P43: 6.8 | Q43: 17.8 | R43: 0.4 | S43: 0.64 | T43: 1.2 | U43: 2.9
B44: Итого за Завтрак | C44: =SUM(C40:C43) -> 360 | D44: =SUM(D40:D43) -> 13.98 | E44: 14.21 | F44: 51.98 | G44: 391.5 | H44: 0.22 | I44: 0.26 | J44: 73.41 | K44: 0.22 | L44: 0.46 | M44: 503.36 | N44: 349.2 | O44: 328.84 | P44: 70.75 | Q44: 306.35 | R44: 2.21 | S44: 53.83 | T44: 6.77 | U44: 54.98
B45: Второй завтрак
A46: Пром. | B46: Ряженка 2.5% | C46: 150 | D46: 4.4 | E46: 3.8 | F46: 6.3 | G46: 76.4 | H46: 0.03 | I46: 0.2 | J46: 33 | K46: 0 | L46: 0.45 | M46: 75 | N46: 219 | O46: 186 | P46: 21 | Q46: 138 | R46: 0.15 | S46: 13.5 | T46: 1.5 | U46: 30
B47: Итого за Второй завтрак | C47: =C46 -> 150 | D47: =D46 -> 4.4 | E47: 3.8 | F47: 6.3 | G47: 76.4 | H47: 0.03 | I47: 0.2 | J47: 33 | K47: 0 | L47: 0.45 | M47: 75 | N47: 219 | O47: 186 | P47: 21 | Q47: 138 | R47: 0.15 | S47: 13.5 | T47: 1.5 | U47: 30
B48: Обед
A49: 54-13з-2020 | B49: Салат из свеклы отварной с растительным маслом | C49: 50 | D49: 0.67 | E49: 2.24 | F49: 3.8 | G49: 38.1 | H49: 0.01 | I49: 0.02 | J49: 0.57 | K49: 0 | L49: 2 | M49: 66 | N49: 114 | O49: 16 | P49: 9 | Q49: 18 | R49: 0.6 | S49: 10 | T49: 0.3 | U49: 9.5
A50: 54-8с-2020 | B50: Суп гороховый | C50: 200 | D50: 6.7 | E50: 4.6 | F50: 16.3 | G50: 133.1 | H50: 0.14 | I50: 0.05 | J50: 97.19 | K50: 0 | L50: 4.77 | M50: 95.82 | N50: 382.43 | O50: 26.94 | P50: 29 | Q50: 80.47 | R50: 1.48 | S50: 15.96 | T50: 2.01 | U50: 28.88
A51: 54-3м-2020 | B51: Голубцы ленивые | C51: 150 | D51: 12.7 | E51: 11.5 | F51: 9.6 | G51: 192.5 | H51: 0.05 | I51: 0.11 | J51: 13.77 | K51: 0.06 | L51: 16.56 | M51: 172.39 | N51: 406.9 | O51: 62.02 | P51: 28.46 | Q51: 138.21 | R51: 2.03 | S51: 25.4 | T51: 1.31 | U51: 53.47
A52: 54-33хн-2020 | B52: Напиток апельсиновый | C52: 150 | D52: 0.1 | E52: 0 | F52: 6 | G52: 24.8 | H52: 0 | I52: 0 | J52: 0.79 | K52: 0 | L52: 3.96 | M52: 1.67 | N52: 27.11 | O52: 55.85 | P52: 1.87 | Q52: 3.3 | R52: 0.06 | S52: 0.33 | T52: 0.07 | U52: 2.81
A53: Пром. | B53: Хлеб пшеничный | C53: 20 | D53: 1.5 | E53: 0.2 | F53: 9.8 | G53: 46.9 | H53: 0.02 | I53: 0.01 | J53: 0 | K53: 0 | L53: 0 | M53: 99.8 | N53: 18.6 | O53: 4 | P53: 2.8 | Q53: 13 | R53: 0.22 | S53: 0.64 | T53: 1.2 | U53: 2.9
A54: Пром. | B54: Хлеб ржаной | C54: 20 | D54: 1.3 | E54: 0.2 | F54: 6.7 | G54: 34.2 | H54: 0.04 | I54: 0.02 | J54: 0 | K54: 0 | L54: 0 | M54: 122 | N54: 49 | O54: 7 | P54: 9.4 | Q54: 31.6 | R54: 0.78 | S54: 0 | T54: 6.18 | U54: 0
B55: Итого за Обед | C55: =SUM(C49:C54) -> 590 | D55: =SUM(D49:D54) -> 22.97 | E55: 18.74 | F55: 52.2 | G55: 469.6 | H55: 0.26 | I55: 0.21 | J55: 112.32 | K55: 0.06 | L55: 27.29 | M55: 557.68 | N55: 998.04 | O55: 171.81 | P55: 80.53 | Q55: 284.58 | R55: 5.17 | S55: 52.33 | T55: 11.07 | U55: 97.56
B56: Полдник
A57: 54-10в-2020 | B57: Булочка ванильная | C57: 50 | D57: 3.9 | E57: 3.4 | F57: 25.4 | G57: 147.4 | H57: 0.05 | I57: 0.03 | J57: 15.93 | K57: 0.12 | L57: 0 | M57: 200.57 | N57: 42.12 | O57: 14.69 | P57: 5.43 | Q57: 34.11 | R57: 0.47 | S57: 27.8 | T57: 2.63 | U57: 9.19
A58: Пром. | B58: Сок яблочный | C58: 160 | D58: 0.8 | E58: 0.16 | F58: 16.16 | G58: 69.3 | H58: 0.01 | I58: 0.01 | J58: 0 | K58: 0 | L58: 1.28 | M58: 7.3 | N58: 159.36 | O58: 9.86 | P58: 5.57 | Q58: 9.74 | R58: 1.95 | S58: 0 | T58: 0 | U58: 0
B59: Итого за Полдник | C59: =SUM(C57:C58) -> 210 | D59: 4.7 | E59: 3.56 | F59: 41.56 | G59: 216.7 | H59: 0.06 | I59: 0.04 | J59: 15.93 | K59: 0.12 | L59: 1.28 | M59: 207.87 | N59: 201.48 | O59: 24.55 | P59: 11 | Q59: 43.85 | R59: 2.42 | S59: 27.8 | T59: 2.63 | U59: 9.19
B60: Итого за день | C60: =C44+C47+C55+C59 -> 1310 | D60: 46.05 | E60: 40.31 | F60: 152.04 | G60: 1154.2 | H60: 0.57 | I60: 0.71 | J60: 234.66 | K60: 0.4 | L60: 29.48 | M60: 1343.91 | N60: 1767.72 | O60: 711.2 | P60: 183.28 | Q60: 772.78 | R60: 9.95 | S60: 147.46 | T60: 21.97 | U60: 191.73
A62: 3 день, 1 неделя
A63: № рецептуры | B63: Название блюда | C63: Масса | D63: Белки | E63: Жиры | F63: Углеводы | G63: Энергетическая ценность | H63: B1 | I63: B2 | J63: A | K63: D | L63: C | M63: Na | N63: K | O63: Ca | P63: Mg | Q63: P | R63: Fe | S63: I | T63: Se | U63: F
C64: г | D64: г | E64: г | F64: г | G64: ккал | H64: мг | I64: мг | J64: мкг рет.экв | K64: мкг | L64: мг | M64: мг | N64: мг | O64: мг | P64: мг | Q64: мг | R64: мг | S64: мкг | T64: мкг | U64: мкг
B65: Среда, 1 неделя
B66: Завтрак | C66: 1-7
A67: 54-1о-2020 | B67: Омлет натуральный | C67: 150 | D67: 12.68 | E67: 17.95 | F67: 3.25 | G67: 225.2 | H67: 0.07 | I67: 0.4 | J67: 182.66 | K67: 2.18 | L67: 0 | M67: 264 | N67: 180 | O67: 110 | P67: 17 | Q67: 202 | R67: 2.1 | S67: 43.65 | T67: 26 | U67: 62.62
A68: 54-3гн-2020 | B68: Чай с лимоном и сахаром | C68: 155 | D68: 0.1 | E68: 0 | F68: 4.9 | G68: 20.4 | H68: 0 | I68: 0 | J68: 0.18 | K68: 0 | L68: 0.86 | M68: 0.71 | N68: 14.95 | O68: 48.62 | P68: 1.98 | Q68: 3.7 | R68: 0.31 | S68: 0.01 | T68: 0.02 | U68: 0.53
A69: Пром. | B69: Батон простой | C69: 20 | D69: 1.6 | E69: 0.2 | F69: 9.8 | G69: 47.5 | H69: 0.03 | I69: 0.01 | J69: 0 | K69: 0 | L69: 0 | M69: 88.6 | N69: 27.2 | O69: 4.6 | P69: 6.8 | Q69: 17.8 | R69: 0.4 | S69: 0.64 | T69: 1.2 | U69: 2.9
B70: Итого за Завтрак | C70: =SUM(C67:C69) -> 325 | D70: =SUM(D67:D69) -> 14.38 | E70: =SUM(E67:E69) -> 18.15 | F70: =SUM(F67:F69) -> 17.95 | G70: =SUM(G67:G69) -> 293.1 | H70: =SUM(H67:H69) -> 0.1 | I70: =SUM(I67:I69) -> 0.41 | J70: =SUM(J67:J69) -> 182.84 | K70: =SUM(K67:K69) -> 2.18 | L70: =SUM(L67:L69) -> 0.86 | M70: =SUM(M67:M69) -> 353.31 | N70: =SUM(N67:N69) -> 222.15 | O70: =SUM(O67:O69) -> 163.22 | P70: =SUM(P67:P69) -> 25.78 | Q70: =SUM(Q67:Q69) -> 223.5 | R70: =SUM(R67:R69) -> 2.81 | S70: =SUM(S67:S69) -> 44.3 | T70: =SUM(T67:T69) -> 27.22 | U70: =SUM(U67:U69) -> 66.05
B71: Второй завтрак
A72: Пром. | B72: Молоко 2.5% | C72: 150 | D72: 4.4 | E72: 3.8 | F72: 7.2 | G72: 80 | H72: 0.06 | I72: 0.23 | J72: 33 | K72: 0 | L72: 1.95 | M72: 75 | N72: 219 | O72: 180 | P72: 21 | Q72: 135 | R72: 0.15 | S72: 13.5 | T72: 3 | U72: 30
B73: Итого за Второй завтрак | C73: 150 | D73: 4.4 | E73: 3.8 | F73: 7.2 | G73: 80 | H73: 0.06 | I73: 0.23 | J73: 33 | K73: 0 | L73: 1.95 | M73: 75 | N73: 219 | O73: 180 | P73: 21 | Q73: 135 | R73: 0.15 | S73: 13.5 | T73: 3 | U73: 30
B74: Обед
A75: 54-16з-2020 | B75: Винегрет с растительным маслом | C75: 50 | D75: 0.59 | E75: 4.47 | F75: 3.33 | G75: 56 | H75: 0.01 | I75: 0.01 | J75: 60.74 | K75: 0 | L75: 1 | M75: 168 | N75: 107 | O75: 9 | P75: 8 | Q75: 18 | R75: 0.4 | S75: 6.56 | T75: 0 | U75: 9.88
A76: 54-1с-2020 | B76: Щи из свежей капусты со сметаной | C76: 200 | D76: 4.7 | E76: 5.6 | F76: 5.7 | G76: 92.2 | H76: 0.02 | I76: 0.03 | J76: 104.95 | K76: 0 | L76: 10.76 | M76: 98.52 | N76: 184 | O76: 37.48 | P76: 13.13 | Q76: 30.97 | R76: 0.48 | S76: 15.25 | T76: 0.34 | U76: 14.76
A77: 54-4г-2020 | B77: Каша гречневая рассыпчатая | C77: 130 | D77: 7.1 | E77: 5.5 | F77: 31.1 | G77: 202.5 | H77: 0.19 | I77: 0.1 | J77: 16.63 | K77: 0.08 | L77: 0 | M77: 129.52 | N77: 190.11 | O77: 40.4 | P77: 104.13 | Q77: 156.86 | R77: 3.51 | S77: 19.31 | T77: 3.05 | U77: 13.92
A78: ном.рец №174 | B78: Тефтели мясные из говядины полуфабрикат | C78: 75 | D78: 8.98 | E78: 9.49 | F78: 7.31 | G78: 150.5 | H78: 0 | I78: 0 | J78: 0 | K78: 0 | L78: 0.79 | M78: 0 | N78: 0 | O78: 0 | P78: 0 | Q78: 0 | R78: 0 | S78: 0 | T78: 0 | U78: 0
A79: 54-3соус-2020 | B79: Соус красный основной | C79: 30 | D79: 1 | E79: 0.7 | F79: 2.7 | G79: 21.2 | H79: 0.01 | I79: 0 | J79: 38.45 | K79: 0.01 | L79: 0.81 | M79: 3.7 | N79: 42.58 | O79: 2.77 | P79: 3.67 | Q79: 7.16 | R79: 0.15 | S79: 0.54 | T79: 0.13 | U79: 2.71
A80: №438 | B80: Напиток яблочный | C80: 150 | D80: 0.1 | E80: 0.1 | F80: 8.5 | G80: 35.6 | H80: 0 | I80: 0 | J80: 0 | K80: 0 | L80: 0.8 | M80: 0 | N80: 0 | O80: 8.9 | P80: 2.8 | Q80: 1.9 | R80: 0.4 | S80: 0 | T80: 0 | U80: 0
A81: Пром. | B81: Хлеб ржаной | C81: 20 | D81: 1.3 | E81: 0.2 | F81: 6.7 | G81: 34.2 | H81: 0.04 | I81: 0.02 | J81: 0 | K81: 0 | L81: 0 | M81: 122 | N81: 49 | O81: 7 | P81: 9.4 | Q81: 31.6 | R81: 0.78 | S81: 0 | T81: 6.18 | U81: 0
A82: Пром. | B82: Хлеб пшеничный | C82: 20 | D82: 1.5 | E82: 0.2 | F82: 9.8 | G82: 46.9 | H82: 0.02 | I82: 0.01 | J82: 0 | K82: 0 | L82: 0 | M82: 99.8 | N82: 18.6 | O82: 4 | P82: 2.8 | Q82: 13 | R82: 0.22 | S82: 0.64 | T82: 1.2 | U82: 2.9
B83: Итого за Обед | C83: =SUM(C75:C82) -> 675 | D83: =SUM(D75:D82) -> 25.27 | E83: 26.26 | F83: 75.14 | G83: 639.1 | H83: 0.29 | I83: 0.17 | J83: 220.77 | K83: 0.09 | L83: 14.16 | M83: 621.54 | N83: 591.29 | O83: 109.55 | P83: 143.93 | Q83: 259.49 | R83: 5.94 | S83: 42.3 | T83: 10.9 | U83: 44.17
B84: Полдник
A85: 54-4гн-2020 | B85: Чай с молоком и сахаром | C85: 150 | D85: 1.1 | E85: 0.8 | F85: 6.4 | G85: 37.7 | H85: 0.01 | I85: 0.05 | J85: 5.06 | K85: 0 | L85: 0.21 | M85: 14.52 | N85: 53.29 | O85: 75.98 | P85: 6 | Q85: 32.05 | R85: 0.31 | S85: 3.38 | T85: 0.66 | U85: 7.5
A86: № Т/К 401 | B86: Блин без начинки П/Ф (45гр) 1 шт | C86: 45 | D86: 1.58 | E86: 1.58 | F86: 10.35 | G86: 63 | H86: 0 | I86: 0 | J86: 0 | K86: 0 | L86: 0 | M86: 0 | N86: 0 | O86: 7.7 | P86: 3.4 | Q86: 20.2 | R86: 0.3 | S86: 0 | T86: 0 | U86: 0
B87: Итого за Полдник | C87: =SUM(C85:C86) -> 195 | D87: 2.68 | E87: 2.38 | F87: 16.75 | G87: 100.7 | H87: 0.01 | I87: 0.05 | J87: 5.06 | K87: 0 | L87: 0.21 | M87: 14.52 | N87: 53.29 | O87: 83.68 | P87: 9.4 | Q87: 52.25 | R87: 0.61 | S87: 3.38 | T87: 0.66 | U87: 7.5
B88: Итого за день | C88: =C70+C73+C83+C87 -> 1345 | D88: 46.73 | E88: 50.59 | F88: 117.04 | G88: 1112.9 | H88: 0.46 | I88: 0.86 | J88: 441.67 | K88: 2.27 | L88: 17.18 | M88: 1064.37 | N88: 1085.73 | O88: 536.45 | P88: 200.11 | Q88: 670.24 | R88: 9.51 | S88: 103.48 | T88: 41.78 | U88: 147.72
A90: 4 день, 1 неделя
A91: № рецептуры | B91: Название блюда | C91: Масса | D91: Белки | E91: Жиры | F91: Углеводы | G91: Энергетическая ценность | H91: B1 | I91: B2 | J91: A | K91: D | L91: C | M91: Na | N91: K | O91: Ca | P91: Mg | Q91: P | R91: Fe | S91: I | T91: Se | U91: F
C92: г | D92: г | E92: г | F92: г | G92: ккал | H92: мг | I92: мг | J92: мкг рет.экв | K92: мкг | L92: мг | M92: мг | N92: мг | O92: мг | P92: мг | Q92: мг | R92: мг | S92: мкг | T92: мкг | U92: мкг
B93: Четверг, 1 неделя
B94: Завтрак | C94: 1-7
A95: 54-1з-2020 | B95: Сыр твердых сортов в нарезке | C95: 10 | D95: 2.3 | E95: 3 | F95: 0 | G95: 35.8 | H95: 0 | I95: 0.03 | J95: 26 | K95: 0.1 | L95: 0.07 | M95: 81 | N95: 8.8 | O95: 88 | P95: 3.5 | Q95: 50 | R95: 0.1 | S95: 0 | T95: 1.45 | U95: 0
A96: 54-7к-2020 | B96: Каша манная | C96: 180 | D96: 7.4 | E96: 4.5 | F96: 33.4 | G96: 203.3 | H96: 0.07 | I96: 0.11 | J96: 16.2 | K96: 0 | L96: 0.29 | M96: 145.71 | N96: 200.54 | O96: 182.66 | P96: 21.82 | Q96: 145.96 | R96: 0.46 | S96: 16.2 | T96: 1.58 | U96: 28.8
A97: 54-2гн-2020 | B97: Чай с сахаром | C97: 150 | D97: 0.1 | E97: 0 | F97: 4.8 | G97: 19.6 | H97: 0 | I97: 0 | J97: 0.11 | K97: 0 | L97: 0.02 | M97: 0.27 | N97: 7.85 | O97: 47.93 | P97: 1.44 | Q97: 2.69 | R97: 0.28 | S97: 0 | T97: 0 | U97: 0
A98: Пром. | B98: Батон простой | C98: 20 | D98: 1.6 | E98: 0.2 | F98: 9.8 | G98: 47.5 | H98: 0.03 | I98: 0.01 | J98: 0 | K98: 0 | L98: 0 | M98: 88.6 | N98: 27.2 | O98: 4.6 | P98: 6.8 | Q98: 17.8 | R98: 0.4 | S98: 0.64 | T98: 1.2 | U98: 2.9
B99: Итого за Завтрак | C99: =SUM(C95:C98) -> 360 | D99: =SUM(D95:D98) -> 11.4 | E99: 7.7 | F99: 48 | G99: 306.2 | H99: 0.1 | I99: 0.15 | J99: 42.31 | K99: 0.1 | L99: 0.38 | M99: 315.58 | N99: 244.39 | O99: 323.19 | P99: 33.56 | Q99: 216.45 | R99: 1.24 | S99: 16.84 | T99: 4.23 | U99: 31.7
B100: Второй завтрак
A101: Пром. | B101: Сок яблочный | C101: 160 | D101: 0.8 | E101: 0.16 | F101: 16.16 | G101: 69.3 | H101: 0.01 | I101: 0.01 | J101: 0 | K101: 0 | L101: 1.28 | M101: 7.3 | N101: 159.36 | O101: 9.86 | P101: 5.57 | Q101: 9.74 | R101: 1.95 | S101: 0 | T101: 0 | U101: 0
B102: Итого за Второй завтрак | C102: =C101 -> 160 | D102: =D101 -> 0.8 | E102: 0.16 | F102: 16.16 | G102: 69.3 | H102: 0.01 | I102: 0.01 | J102: 0 | K102: 0 | L102: 1.28 | M102: 7.3 | N102: 159.36 | O102: 9.86 | P102: 5.57 | Q102: 9.74 | R102: 1.95 | S102: 0 | T102: 0 | U102: 0
B103: Обед
A104: 54-9з-2020 | B104: Салат из белокочанной капусты с морковью и яблоками и растительным маслом | C104: 50 | D104: 0.68 | E104: 5.08 | F104: 3.01 | G104: 60.5 | H104: 0.01 | I104: 0.02 | J104: 120.81 | K104: 0 | L104: 5 | M104: 56 | N104: 111 | O104: 17 | P104: 8 | Q104: 14 | R104: 0.4 | S104: 8.23 | T104: 0.1 | U104: 9.15
A105: 54-7с-2020 | B105: Суп картофельный с вермишелью | C105: 200 | D105: 5.2 | E105: 2.8 | F105: 18.5 | G105: 119.6 | H105: 0.09 | I105: 0.05 | J105: 97.51 | K105: 0 | L105: 6.89 | M105: 93.01 | N105: 410.42 | O105: 13.73 | P105: 20.84 | Q105: 54.56 | R105: 0.86 | S105: 16.76 | T105: 0.23 | U105: 32.72
A106: 54-21г-2020 | B106: Горошница | C106: 130 | D106: 12.5 | E106: 1.1 | F106: 29.3 | G106: 177.5 | H106: 0.38 | I106: 0.08 | J106: 0.78 | K106: 0 | L106: 0 | M106: 143.79 | N106: 471.02 | O106: 108.29 | P106: 60.59 | Q106: 186.33 | R106: 3.86 | S106: 20.65 | T106: 7.49 | U106: 19.5
A107: №272 | B107: Биточек рубленный из говядины с соусом | C107: 50/30 | D107: 9.3 | E107: 7.1 | F107: 11.8 | G107: 148.6 | H107: 0 | I107: 0 | J107: 0.1 | K107: 0 | L107: 1.4 | M107: 0 | N107: 0 | O107: 14.7 | P107: 18.9 | Q107: 97 | R107: 1.7 | S107: 0 | T107: 0 | U107: 0
A108: 54-3гн -2020 | B108: Кисель | C108: 150 | D108: 0 | E108: 0 | F108: 9.5 | G108: 37.9 | H108: 0.03 | I108: 0.03 | J108: 9.37 | K108: 0 | L108: 1.59 | M108: 0.09 | N108: 1.18 | O108: 43.75 | P108: 0.1 | Q108: 0.08 | R108: 0.02 | S108: 0 | T108: 0 | U108: 0
A109: Пром. | B109: Хлеб пшеничный | C109: 20 | D109: 1.5 | E109: 0.2 | F109: 9.8 | G109: 46.9 | H109: 0.02 | I109: 0.01 | J109: 0 | K109: 0 | L109: 0 | M109: 99.8 | N109: 18.6 | O109: 4 | P109: 2.8 | Q109: 13 | R109: 0.22 | S109: 0.64 | T109: 1.2 | U109: 2.9
A110: Пром. | B110: Хлеб ржаной | C110: 20 | D110: 1.3 | E110: 0.2 | F110: 6.7 | G110: 34.2 | H110: 0.04 | I110: 0.02 | J110: 0 | K110: 0 | L110: 0 | M110: 122 | N110: 49 | O110: 7 | P110: 9.4 | Q110: 31.6 | R110: 0.78 | S110: 0 | T110: 6.18 | U110: 0
B111: Итого за Обед | C111: 650 | D111: =SUM(D104:D110) -> 30.48 | E111: 16.48 | F111: 88.61 | G111: 625.2 | H111: 0.57 | I111: 0.21 | J111: 228.57 | K111: 0 | L111: 14.88 | M111: 514.69 | N111: 1061.22 | O111: 208.47 | P111: 120.63 | Q111: 396.57 | R111: 7.84 | S111: 46.28 | T111: 15.2 | U111: 64.27
B112: Полдник
A113: 54-21гн-2020 | B113: Какао с молоком | C113: 150 | D113: 2.6 | E113: 1.9 | F113: 8.3 | G113: 60.8 | H113: 0.02 | I113: 0.09 | J113: 9.94 | K113: 0 | L113: 0.39 | M113: 28.76 | N113: 119.2 | O113: 107.24 | P113: 17.45 | Q113: 71.55 | R113: 0.51 | S113: 6.75 | T113: 1.32 | U113: 20.51
A114: Пром. | B114: Сушка простая | C114: 15 | D114: 1.6 | E114: 0.2 | F114: 10.3 | G114: 49.6 | H114: 0.03 | I114: 0.01 | J114: 0 | K114: 0 | L114: 0 | M114: 90.75 | N114: 27.75 | O114: 4.5 | P114: 6.9 | Q114: 18.15 | R114: 0.44 | S114: 0 | T114: 0 | U114: 0
A115: Пром. | B115: Фрукт (яблоко, банан, апельсин) | C115: 140 | D115: 0.4 | E115: 0.4 | F115: 9.8 | G115: 44.4 | H115: 0.03 | I115: 0.02 | J115: 5 | K115: 0 | L115: 10 | M115: 26 | N115: 278 | O115: 16 | P115: 9 | Q115: 11 | R115: 2.2 | S115: 2 | T115: 0.3 | U115: 8
B116: Итого за Полдник | C116: =SUM(C113:C115) -> 305 | D116: =SUM(D113:D115) -> 4.6 | E116: =SUM(E113:E115) -> 2.5 | F116: 28.4 | G116: 154.8 | H116: 0.08 | I116: 0.12 | J116: 14.94 | K116: 0 | L116: 10.39 | M116: 145.51 | N116: 424.95 | O116: 127.74 | P116: 33.35 | Q116: 100.7 | R116: 3.15 | S116: 8.75 | T116: 1.62 | U116: 28.51
B117: Итого за день | C117: =C99+C102+C111+C116 -> 1475 | D117: 47.28 | E117: 26.84 | F117: 181.17 | G117: 1155.5 | H117: 0.76 | I117: 0.49 | J117: 285.82 | K117: 0.1 | L117: 26.93 | M117: 983.08 | N117: 1889.92 | O117: 669.26 | P117: 193.11 | Q117: 723.46 | R117: 14.18 | S117: 71.87 | T117: 21.05 | U117: 124.48
A119: 5 день, 1 неделя
A120: № рецептуры | B120: Название блюда | C120: Масса | D120: Белки | E120: Жиры | F120: Углеводы | G120: Энергетическая ценность | H120: B1 | I120: B2 | J120: A | K120: D | L120: C | M120: Na | N120: K | O120: Ca | P120: Mg | Q120: P | R120: Fe | S120: I | T120: Se | U120: F
C121: г | D121: г | E121: г | F121: г | G121: ккал | H121: мг | I121: мг | J121: мкг рет.экв | K121: мкг | L121: мг | M121: мг | N121: мг | O121: мг | P121: мг | Q121: мг | R121: мг | S121: мкг | T121: мкг | U121: мкг
B122: Пятница, 1 неделя
B123: Завтрак | C123: 1-7
A124: 54-19к-2020 | B124: Суп молочный с макаронными изделиями | C124: 180 | D124: 4.9 | E124: 4.1 | F124: 16.1 | G124: 120.8 | H124: 0.05 | I124: 0.16 | J124: 21.49 | K124: 0.02 | L124: 0.66 | M124: 101.38 | N124: 167.89 | O124: 153.08 | P124: 17.39 | Q124: 110.14 | R124: 0.32 | S124: 18.76 | T124: 2.23 | U124: 28.56
A125: 54-3гн-2020 | B125: Чай с лимоном и сахаром | C125: 155 | D125: 0.1 | E125: 0 | F125: 4.9 | G125: 20.4 | H125: 0 | I125: 0 | J125: 0.18 | K125: 0 | L125: 0.86 | M125: 0.71 | N125: 14.95 | O125: 48.62 | P125: 1.98 | Q125: 3.7 | R125: 0.31 | S125: 0.01 | T125: 0.02 | U125: 0.53
A126: Пром. | B126: Батон простой | C126: 20 | D126: 1.6 | E126: 0.2 | F126: 9.8 | G126: 47.5 | H126: 0.03 | I126: 0.01 | J126: 0 | K126: 0 | L126: 0 | M126: 88.6 | N126: 27.2 | O126: 4.6 | P126: 6.8 | Q126: 17.8 | R126: 0.4 | S126: 0.64 | T126: 1.2 | U126: 2.9
B127: Итого за Завтрак | C127: =SUM(C124:C126) -> 355 | D127: 6.6 | E127: 4.3 | F127: 30.8 | G127: 188.7 | H127: 0.08 | I127: 0.17 | J127: 21.67 | K127: 0.02 | L127: 1.52 | M127: 190.69 | N127: 210.04 | O127: 206.3 | P127: 26.17 | Q127: 131.64 | R127: 1.03 | S127: 19.41 | T127: 3.45 | U127: 31.99
B128: Второй завтрак
A129: Пром. | B129: Молоко 2.5% | C129: 150 | D129: 4.4 | E129: 3.8 | F129: 7.2 | G129: 80 | H129: 0.06 | I129: 0.23 | J129: 33 | K129: 0 | L129: 1.95 | M129: 75 | N129: 219 | O129: 180 | P129: 21 | Q129: 135 | R129: 0.15 | S129: 13.5 | T129: 3 | U129: 30
B130: Итого за Второй завтрак | C130: 150 | D130: 4.4 | E130: 3.8 | F130: 7.2 | G130: 80 | H130: 0.06 | I130: 0.23 | J130: 33 | K130: 0 | L130: 1.95 | M130: 75 | N130: 219 | O130: 180 | P130: 21 | Q130: 135 | R130: 0.15 | S130: 13.5 | T130: 3 | U130: 30
B131: Обед
A132: 54-16з-2020 | B132: Винегрет с растительным маслом | C132: 50 | D132: 0.59 | E132: 4.47 | F132: 3.33 | G132: 56 | H132: 0.01 | I132: 0.01 | J132: 60.74 | K132: 0 | L132: 1 | M132: 168 | N132: 107 | O132: 9 | P132: 8 | Q132: 18 | R132: 0.4 | S132: 6.56 | T132: 0 | U132: 9.88
A133: 54-2с-2020 | B133: Борщ с капустой и картофелем со сметаной | C133: 200 | D133: 4.7 | E133: 5.7 | F133: 10.1 | G133: 110.4 | H133: 0.03 | I133: 0.04 | J133: 134.66 | K133: 0 | L133: 6.77 | M133: 107.03 | N133: 264.63 | O133: 33.68 | P133: 19.22 | Q133: 42.64 | R133: 0.87 | S133: 17.16 | T133: 0.4 | U133: 22.62
A134: 54-11г-2020 | B134: Картофельное пюре | C134: 130 | D134: 2.7 | E134: 4.6 | F134: 17.2 | G134: 120.8 | H134: 0.1 | I134: 0.09 | J134: 20.62 | K134: 0.08 | L134: 8.84 | M134: 140.21 | N134: 541.52 | O134: 34.22 | P134: 24.47 | Q134: 73.21 | R134: 0.89 | S134: 24.67 | T134: 0.68 | U134: 37.09
A135: 54-7р-2020 | B135: Рыба, припущенная в молоке (минтай) | C135: 75 | D135: 9.8 | E135: 5.8 | F135: 2.1 | G135: 100 | H135: 0.06 | I135: 0.08 | J135: 6.77 | K135: 0.12 | L135: 0.84 | M135: 82.98 | N135: 260.04 | O135: 51.16 | P135: 33.5 | Q135: 151.85 | R135: 0.55 | S135: 100.11 | T135: 8.88 | U135: 429.45
A136: №438 | B136: Напиток яблочный | C136: 150 | D136: 0.1 | E136: 0.1 | F136: 8.5 | G136: 35.6 | H136: 0 | I136: 0 | J136: 0 | K136: 0 | L136: 0.8 | M136: 0 | N136: 0 | O136: 8.9 | P136: 2.8 | Q136: 1.9 | R136: 0.4 | S136: 0 | T136: 0 | U136: 0
A137: Пром. | B137: Хлеб ржаной | C137: 20 | D137: 1.3 | E137: 0.2 | F137: 6.7 | G137: 34.2 | H137: 0.04 | I137: 0.02 | J137: 0 | K137: 0 | L137: 0 | M137: 122 | N137: 49 | O137: 7 | P137: 9.4 | Q137: 31.6 | R137: 0.78 | S137: 0 | T137: 6.18 | U137: 0
A138: Пром. | B138: Хлеб пшеничный | C138: 20 | D138: 1.5 | E138: 0.2 | F138: 9.8 | G138: 46.9 | H138: 0.02 | I138: 0.01 | J138: 0 | K138: 0 | L138: 0 | M138: 99.8 | N138: 18.6 | O138: 4 | P138: 2.8 | Q138: 13 | R138: 0.22 | S138: 0.64 | T138: 1.2 | U138: 2.9
B139: Итого за Обед | C139: =SUM(C132:C138) -> 645 | D139: =SUM(D132:D138) -> 20.69 | E139: 21.07 | F139: 57.73 | G139: 503.9 | H139: 0.26 | I139: 0.25 | J139: 222.79 | K139: 0.2 | L139: 18.25 | M139: 720.02 | N139: 1240.79 | O139: 147.96 | P139: 100.19 | Q139: 332.2 | R139: 4.11 | S139: 149.14 | T139: 17.34 | U139: 501.94
B140: Полдник
A141: 54-23гн-2020 | B141: Кофейный напиток с молоком | C141: 150 | D141: 2.4 | E141: 1.8 | F141: 8.2 | G141: 58.9 | H141: 0.02 | I141: 0.09 | J141: 9.93 | K141: 0 | L141: 0.39 | M141: 28.69 | N141: 109.8 | O141: 108.7 | P141: 14.68 | Q141: 67.27 | R141: 0.37 | S141: 6.75 | T141: 1.32 | U141: 15
A142: Пром. | B142: Пряник | C142: 30 | D142: 1.8 | E142: 1.4 | F142: 22.5 | G142: 109.8 | H142: 0.02 | I142: 0.01 | J142: 0 | K142: 0 | L142: 0 | M142: 0.6 | N142: 21.3 | O142: 3.3 | P142: 2.7 | Q142: 15 | R142: 0.24 | S142: 0 | T142: 0 | U142: 0
B143: Итого за Полдник | C143: =SUM(C141:C142) -> 180 | D143: 4.2 | E143: 3.2 | F143: 30.7 | G143: 168.7 | H143: 0.04 | I143: 0.1 | J143: 9.93 | K143: 0 | L143: 0.39 | M143: 29.29 | N143: 131.1 | O143: 112 | P143: 17.38 | Q143: 82.27 | R143: 0.61 | S143: 6.75 | T143: 1.32 | U143: 15
B144: Итого за день | C144: =C127+C130+C139+C143 -> 1330 | D144: 35.89 | E144: 32.37 | F144: 126.43 | G144: 941.3 | H144: 0.44 | I144: 0.75 | J144: 287.39 | K144: 0.22 | L144: 22.11 | M144: 1015 | N144: 1800.93 | O144: 646.26 | P144: 164.74 | Q144: 681.11 | R144: 5.9 | S144: 188.8 | T144: 25.11 | U144: 578.93
A146: 6 день, 1 неделя
A147: № рецептуры | B147: Название блюда | C147: Масса | D147: Белки | E147: Жиры | F147: Углеводы | G147: Энергетическая ценность | H147: B1 | I147: B2 | J147: A | K147: D | L147: C | M147: Na | N147: K | O147: Ca | P147: Mg | Q147: P | R147: Fe | S147: I | T147: Se | U147: F
B148: Суббота, 1 неделя | C148: г | D148: г | E148: г | F148: г | G148: ккал | H148: мг | I148: мг | J148: мкг рет.экв | K148: мкг | L148: мг | M148: мг | N148: мг | O148: мг | P148: мг | Q148: мг | R148: мг | S148: мкг | T148: мкг | U148: мкг
B149: Завтрак | C149: 1-7
A150: 54-1т-2020 | B150: Запеканка из творога | C150: 150 | D150: 29.7 | E150: 10.7 | F150: 22.3 | G150: 304.2 | H150: 0.06 | I150: 0.32 | J150: 51.24 | K150: 0.16 | L150: 0.29 | M150: 188.79 | N150: 159.57 | O150: 224.07 | P150: 32.46 | Q150: 290.8 | R150: 0.86 | S150: 29.82 | T150: 39.13 | U150: 49.65
A151: 54-2гн-2020 | B151: Чай - заварка | C151: 150 | D151: 0.1 | E151: 0 | F151: 4.8 | G151: 19.6 | H151: 0 | I151: 0 | J151: 0.11 | K151: 0 | L151: 0.02 | M151: 0.27 | N151: 7.85 | O151: 47.93 | P151: 1.44 | Q151: 2.69 | R151: 0.28 | S151: 0 | T151: 0 | U151: 0
A152: Пром. | B152: молоко сгущенное с сахаром | C152: 20 | D152: 1.4 | E152: 1.7 | F152: 11.1 | G152: 65.5 | H152: 0.01 | I152: 0.08 | J152: 9.4 | K152: 0 | L152: 0.2 | M152: 26 | N152: 73 | O152: 61.4 | P152: 6.8 | Q152: 43.8 | R152: 0.04 | S152: 1.4 | T152: 0.6 | U152: 7
A153: Пром. | B153: Батон простой | C153: 20 | D153: 1.6 | E153: 0.2 | F153: 9.8 | G153: 47.5 | H153: 0.03 | I153: 0.01 | J153: 0 | K153: 0 | L153: 0 | M153: 88.6 | N153: 27.2 | O153: 4.6 | P153: 6.8 | Q153: 17.8 | R153: 0.4 | S153: 0.64 | T153: 1.2 | U153: 2.9
B154: Итого за Завтрак | C154: =SUM(C150:C153) -> 340 | D154: =SUM(D150:D153) -> 32.8 | E154: =SUM(E150:E153) -> 12.6 | F154: =SUM(F150:F153) -> 48 | G154: =SUM(G150:G153) -> 436.8 | H154: =SUM(H150:H153) -> 0.1 | I154: =SUM(I150:I153) -> 0.41 | J154: =SUM(J150:J153) -> 60.75 | K154: =SUM(K150:K153) -> 0.16 | L154: =SUM(L150:L153) -> 0.51 | M154: =SUM(M150:M153) -> 303.66 | N154: =SUM(N150:N153) -> 267.62 | O154: =SUM(O150:O153) -> 338 | P154: =SUM(P150:P153) -> 47.5 | Q154: =SUM(Q150:Q153) -> 355.09 | R154: =SUM(R150:R153) -> 1.58 | S154: =SUM(S150:S153) -> 31.86 | T154: =SUM(T150:T153) -> 40.93 | U154: =SUM(U150:U153) -> 59.55
B155: Второй завтрак
A156: Пром. | B156: Сок яблочный | C156: 160 | D156: 0.8 | E156: 0.16 | F156: 16.16 | G156: 69.3 | H156: 0.01 | I156: 0.01 | J156: 0 | K156: 0 | L156: 1.28 | M156: 7.3 | N156: 159.36 | O156: 9.86 | P156: 5.57 | Q156: 9.74 | R156: 1.95 | S156: 0 | T156: 0 | U156: 0
B157: Итого за Второй завтрак | C157: =C156 -> 160 | D157: =D156 -> 0.8 | E157: 0.16 | F157: 16.16 | G157: 69.3 | H157: 0.01 | I157: 0.01 | J157: 0 | K157: 0 | L157: 1.28 | M157: 7.3 | N157: 159.36 | O157: 9.86 | P157: 5.57 | Q157: 9.74 | R157: 1.95 | S157: 0 | T157: 0 | U157: 0
B158: Обед
A159: 54-11з-2020 | B159: Салат из моркови с яблоками и растительным маслом | C159: 50 | D159: 0.46 | E159: 5.09 | F159: 3.57 | G159: 62 | H159: 0.01 | I159: 0.02 | J159: 366.45 | K159: 0 | L159: 2 | M159: 57 | N159: 86 | O159: 10 | P159: 11 | Q159: 16 | R159: 0.5 | S159: 8.5 | T159: 0 | U159: 17.98
A160: 54-1с-2020 | B160: Щи из свежей капусты со сметаной | C160: 200 | D160: 4.7 | E160: 5.6 | F160: 5.7 | G160: 92.2 | H160: 0.02 | I160: 0.03 | J160: 104.95 | K160: 0 | L160: 10.76 | M160: 98.52 | N160: 184 | O160: 37.48 | P160: 13.13 | Q160: 30.97 | R160: 0.48 | S160: 15.25 | T160: 0.34 | U160: 14.76
A161: 54-1г-2020 | B161: Макароны отварные | C161: 130 | D161: 4.6 | E161: 4.3 | F161: 28.4 | G161: 170.6 | H161: 0.05 | I161: 0.02 | J161: 15.91 | K161: 0.08 | L161: 0 | M161: 129.16 | N161: 46.62 | O161: 91.72 | P161: 6.24 | Q161: 35.28 | R161: 0.64 | S161: 18 | T161: 0.05 | U161: 10.33
A162: №272 | B162: Биточек рубленный из говядины с соусом | C162: 50/30 | D162: 9.3 | E162: 7.1 | F162: 11.8 | G162: 148.6 | H162: 0 | I162: 0 | J162: 0.1 | K162: 0 | L162: 1.4 | M162: 0 | N162: 0 | O162: 14.7 | P162: 18.9 | Q162: 97 | R162: 1.7 | S162: 0 | T162: 0 | U162: 0
A163: 54-33хн-2020 | B163: Напиток апельсиновый | C163: 150 | D163: 0.1 | E163: 0 | F163: 6 | G163: 24.8 | H163: 0 | I163: 0 | J163: 0.79 | K163: 0 | L163: 3.96 | M163: 1.67 | N163: 27.11 | O163: 55.85 | P163: 1.87 | Q163: 3.3 | R163: 0.06 | S163: 0.33 | T163: 0.07 | U163: 2.81
A164: Пром. | B164: Хлеб ржаной | C164: 20 | D164: 1.3 | E164: 0.2 | F164: 6.7 | G164: 34.2 | H164: 0.04 | I164: 0.02 | J164: 0 | K164: 0 | L164: 0 | M164: 122 | N164: 49 | O164: 7 | P164: 9.4 | Q164: 31.6 | R164: 0.78 | S164: 0 | T164: 6.18 | U164: 0
B165: Итого за Обед | C165: 630 | D165: =SUM(D159:D164) -> 20.46 | E165: =SUM(E159:E164) -> 22.29 | F165: =SUM(F159:F164) -> 62.17 | G165: =SUM(G159:G164) -> 532.4 | H165: =SUM(H159:H164) -> 0.12 | I165: =SUM(I159:I164) -> 0.09 | J165: =SUM(J159:J164) -> 488.2 | K165: =SUM(K159:K164) -> 0.08 | L165: =SUM(L159:L164) -> 18.12 | M165: =SUM(M159:M164) -> 408.35 | N165: =SUM(N159:N164) -> 392.73 | O165: =SUM(O159:O164) -> 216.75 | P165: =SUM(P159:P164) -> 60.54 | Q165: =SUM(Q159:Q164) -> 214.15 | R165: =SUM(R159:R164) -> 4.16 | S165: =SUM(S159:S164) -> 42.08 | T165: =SUM(T159:T164) -> 6.64 | U165: =SUM(U159:U164) -> 45.88
B168: Итого за день | C168: =C165+C157+C154 -> 1130 | D168: =D165+D157+D154 -> 54.06 | E168: =E165+E157+E154 -> 35.05 | F168: =F165+F157+F154 -> 126.33 | G168: =G165+G157+G154 -> 1038.5 | H168: =H165+H157+H154 -> 0.23 | I168: =I165+I157+I154 -> 0.51 | J168: =J165+J157+J154 -> 548.95 | K168: =K165+K157+K154 -> 0.24 | L168: =L165+L157+L154 -> 19.91 | M168: =M165+M157+M154 -> 719.31 | N168: =N165+N157+N154 -> 819.71 | O168: =O165+O157+O154 -> 564.61 | P168: =P165+P157+P154 -> 113.61 | Q168: =Q165+Q157+Q154 -> 578.98 | R168: =R165+R157+R154 -> 7.69 | S168: =S165+S157+S154 -> 73.94 | T168: =T165+T157+T154 -> 47.57 | U168: =U165+U157+U154 -> 105.43
A170: 7 день, 2 неделя
A171: № рецептуры | B171: Название блюда | C171: Масса | D171: Белки | E171: Жиры | F171: Углеводы | G171: Энергетическая ценность | H171: B1 | I171: B2 | J171: A | K171: D | L171: C | M171: Na | N171: K | O171: Ca | P171: Mg | Q171: P | R171: Fe | S171: I | T171: Se | U171: F
C172: г | D172: г | E172: г | F172: г | G172: ккал | H172: мг | I172: мг | J172: мкг рет.экв | K172: мкг | L172: мг | M172: мг | N172: мг | O172: мг | P172: мг | Q172: мг | R172: мг | S172: мкг | T172: мкг | U172: мкг
B173: Понедельник, 2 неделя
B174: Завтрак | C174: 1-7
A175: 54-3г-2020 | B175: Макароны отварные с сыром | C175: 180 | D175: 9.5 | E175: 8.2 | F175: 34.4 | G175: 249.3 | H175: 0.07 | I175: 0.06 | J175: 40.39 | K175: 0.23 | L175: 0.05 | M175: 289.07 | N175: 68.97 | O175: 187.54 | P175: 13.05 | Q175: 120.39 | R175: 0.92 | S175: 24.8 | T175: 2.34 | U175: 12.44
A176: 54-21гн-2020 | B176: Какао с молоком | C176: 150 | D176: 2.6 | E176: 1.9 | F176: 8.3 | G176: 60.8 | H176: 0.02 | I176: 0.09 | J176: 9.94 | K176: 0 | L176: 0.39 | M176: 28.76 | N176: 119.2 | O176: 107.24 | P176: 17.45 | Q176: 71.55 | R176: 0.51 | S176: 6.75 | T176: 1.32 | U176: 20.51
A177: Пром. | B177: Батон простой | C177: 20 | D177: 1.6 | E177: 0.2 | F177: 9.8 | G177: 47.5 | H177: 0.03 | I177: 0.01 | J177: 0 | K177: 0 | L177: 0 | M177: 88.6 | N177: 27.2 | O177: 4.6 | P177: 6.8 | Q177: 17.8 | R177: 0.4 | S177: 0.64 | T177: 1.2 | U177: 2.9
B178: Итого за Завтрак | C178: =SUM(C175:C177) -> 350 | D178: =SUM(D175:D177) -> 13.7 | E178: =SUM(E175:E177) -> 10.3 | F178: =SUM(F175:F177) -> 52.5 | G178: =SUM(G175:G177) -> 357.6 | H178: =SUM(H175:H177) -> 0.12 | I178: =SUM(I175:I177) -> 0.16 | J178: =SUM(J175:J177) -> 50.33 | K178: =SUM(K175:K177) -> 0.23 | L178: =SUM(L175:L177) -> 0.44 | M178: =SUM(M175:M177) -> 406.43 | N178: =SUM(N175:N177) -> 215.37 | O178: =SUM(O175:O177) -> 299.38 | P178: =SUM(P175:P177) -> 37.3 | Q178: =SUM(Q175:Q177) -> 209.74 | R178: =SUM(R175:R177) -> 1.83 | S178: =SUM(S175:S177) -> 32.19 | T178: =SUM(T175:T177) -> 4.86 | U178: =SUM(U175:U177) -> 35.85
B179: Второй завтрак
A180: Пром. | B180: Сок яблочный | C180: 160 | D180: 0.8 | E180: 0.16 | F180: 16.16 | G180: 69.3 | H180: 0.01 | I180: 0.01 | J180: 0 | K180: 0 | L180: 1.28 | M180: 7.3 | N180: 159.36 | O180: 9.86 | P180: 5.57 | Q180: 9.74 | R180: 1.95 | S180: 0 | T180: 0 | U180: 0
B181: Итого за Второй завтрак | C181: =C180 -> 160 | D181: =D180 -> 0.8 | E181: 0.16 | F181: 16.16 | G181: 69.3 | H181: 0.01 | I181: 0.01 | J181: 0 | K181: 0 | L181: 1.28 | M181: 7.3 | N181: 159.36 | O181: 9.86 | P181: 5.57 | Q181: 9.74 | R181: 1.95 | S181: 0 | T181: 0 | U181: 0
B182: Обед
A183: 54-13з-2020 | B183: Салат из свеклы отварной с растительным маслом | C183: 50 | D183: 0.67 | E183: 2.24 | F183: 3.8 | G183: 38.1 | H183: 0.01 | I183: 0.02 | J183: 0.57 | K183: 0 | L183: 2 | M183: 66 | N183: 114 | O183: 16 | P183: 9 | Q183: 18 | R183: 0.6 | S183: 10 | T183: 0.3 | U183: 9.5
A184: 54-3с-2020 | B184: Рассольник Ленинградский | C184: 200 | D184: 4.8 | E184: 5.8 | F184: 13.6 | G184: 125.5 | H184: 0.06 | I184: 0.05 | J184: 103.93 | K184: 0 | L184: 5.54 | M184: 196.79 | N184: 334.95 | O184: 21.08 | P184: 19.71 | Q184: 51.39 | R184: 0.71 | S184: 16.6 | T184: 0.75 | U184: 28.28
A185: 54-13м-2020 | B185: Запеканка картофельная с говядиной | C185: 150 | D185: 17.7 | E185: 18 | F185: 19.8 | G185: 312.2 | H185: 0.15 | I185: 0.19 | J185: 36.29 | K185: 0.14 | L185: 9.9 | M185: 279.43 | N185: 818.72 | O185: 22.83 | P185: 42.22 | Q185: 209 | R185: 3.1 | S185: 42.84 | T185: 1.67 | U185: 91.91
A186: 54-1хн-2020 | B186: Компот из смеси сухофруктов | C186: 150 | D186: 0.4 | E186: 0 | F186: 14.8 | G186: 60.7 | H186: 0 | I186: 0 | J186: 11.25 | K186: 0 | L186: 0.02 | M186: 0.04 | N186: 0.13 | O186: 81.06 | P186: 1.58 | Q186: 3.23 | R186: 0.06 | S186: 0 | T186: 0 | U186: 0
A187: Пром. | B187: Хлеб пшеничный | C187: 20 | D187: 1.5 | E187: 0.2 | F187: 9.8 | G187: 46.9 | H187: 0.02 | I187: 0.01 | J187: 0 | K187: 0 | L187: 0 | M187: 99.8 | N187: 18.6 | O187: 4 | P187: 2.8 | Q187: 13 | R187: 0.22 | S187: 0.64 | T187: 1.2 | U187: 2.9
A188: Пром. | B188: Хлеб ржаной | C188: 20 | D188: 1.3 | E188: 0.2 | F188: 6.7 | G188: 34.2 | H188: 0.04 | I188: 0.02 | J188: 0 | K188: 0 | L188: 0 | M188: 122 | N188: 49 | O188: 7 | P188: 9.4 | Q188: 31.6 | R188: 0.78 | S188: 0 | T188: 6.18 | U188: 0
B189: Итого за Обед | C189: =SUM(C183:C188) -> 590 | D189: =SUM(D183:D188) -> 26.37 | E189: 26.44 | F189: 68.5 | G189: 617.6 | H189: 0.28 | I189: 0.29 | J189: 152.04 | K189: 0.14 | L189: 17.46 | M189: 764.06 | N189: 1335.4 | O189: 151.97 | P189: 84.71 | Q189: 326.22 | R189: 5.47 | S189: 70.08 | T189: 10.1 | U189: 132.59
B190: Полдник
A191: 54-2гн-2020 | B191: Чай с сахаром | C191: 150 | D191: 0.1 | E191: 0 | F191: 4.8 | G191: 19.6 | H191: 0 | I191: 0 | J191: 0.11 | K191: 0 | L191: 0.02 | M191: 0.27 | N191: 7.85 | O191: 47.93 | P191: 1.44 | Q191: 2.69 | R191: 0.28 | S191: 0 | T191: 0 | U191: 0
A192: 54-10в-2020 | B192: Булочка ванильная | C192: 50 | D192: 3.9 | E192: 3.4 | F192: 25.4 | G192: 147.4 | H192: 0.05 | I192: 0.03 | J192: 15.93 | K192: 0.12 | L192: 0 | M192: 200.57 | N192: 42.12 | O192: 14.69 | P192: 5.43 | Q192: 34.11 | R192: 0.47 | S192: 27.8 | T192: 2.63 | U192: 9.19
B193: Итого за Полдник | C193: =SUM(C191:C192) -> 200 | D193: 4 | E193: 3.4 | F193: 30.2 | G193: 167 | H193: 0.05 | I193: 0.03 | J193: 16.04 | K193: 0.12 | L193: 0.02 | M193: 200.84 | N193: 49.97 | O193: 62.62 | P193: 6.87 | Q193: 36.8 | R193: 0.75 | S193: 27.8 | T193: 2.63 | U193: 9.19
B194: Итого за день | C194: =C178+C181+C189+C193 -> 1300 | D194: 44.87 | E194: 40.3 | F194: 167.36 | G194: 1211.5 | H194: 0.46 | I194: 0.49 | J194: 218.41 | K194: 0.49 | L194: 19.2 | M194: 1378.63 | N194: 1760.1 | O194: 523.83 | P194: 134.45 | Q194: 582.5 | R194: 10 | S194: 130.07 | T194: 17.59 | U194: 177.63
A196: 8 день, 2 неделя
A197: № рецептуры | B197: Название блюда | C197: Масса | D197: Белки | E197: Жиры | F197: Углеводы | G197: Энергетическая ценность | H197: B1 | I197: B2 | J197: A | K197: D | L197: C | M197: Na | N197: K | O197: Ca | P197: Mg | Q197: P | R197: Fe | S197: I | T197: Se | U197: F
C198: г | D198: г | E198: г | F198: г | G198: ккал | H198: мг | I198: мг | J198: мкг рет.экв | K198: мкг | L198: мг | M198: мг | N198: мг | O198: мг | P198: мг | Q198: мг | R198: мг | S198: мкг | T198: мкг | U198: мкг
B199: Вторник, 2 неделя
B200: Завтрак | C200: 1-7
A201: 54-1т-2020 | B201: Запеканка из творога | C201: 150 | D201: 29.66 | E201: 12.58 | F201: 21.65 | G201: 301.2 | H201: 0.06 | I201: 0.3 | J201: 51.11 | K201: 0.16 | L201: 0 | M201: 181 | N201: 159 | O201: 223 | P201: 32 | Q201: 291 | R201: 0.8 | S201: 28.82 | T201: 39 | U201: 49.63
A202: Пром. | B202: Молоко сгущенное с сахаром | C202: 20 | D202: 1.44 | E202: 1.7 | F202: 11.1 | G202: 65.5 | H202: 0.01 | I202: 0.06 | J202: 5.64 | K202: 0 | L202: 0 | M202: 20 | N202: 61 | O202: 54 | P202: 6 | Q202: 38 | R202: 0 | S202: 1.4 | T202: 0.5 | U202: 7
A203: 54-4гн-2020 | B203: Чай с молоком и сахаром | C203: 150 | D203: 1.1 | E203: 0.8 | F203: 6.4 | G203: 37.7 | H203: 0.01 | I203: 0.05 | J203: 5.06 | K203: 0 | L203: 0.21 | M203: 14.52 | N203: 53.29 | O203: 75.98 | P203: 6 | Q203: 32.05 | R203: 0.31 | S203: 3.38 | T203: 0.66 | U203: 7.5
A204: Пром. | B204: Батон простой | C204: 20 | D204: 1.6 | E204: 0.2 | F204: 9.8 | G204: 47.5 | H204: 0.03 | I204: 0.01 | J204: 0 | K204: 0 | L204: 0 | M204: 88.6 | N204: 27.2 | O204: 4.6 | P204: 6.8 | Q204: 17.8 | R204: 0.4 | S204: 0.64 | T204: 1.2 | U204: 2.9
B205: Итого за Завтрак | C205: =SUM(C201:C204) -> 340 | D205: 33.8 | E205: 15.28 | F205: 48.95 | G205: 451.9 | H205: 0.11 | I205: 0.42 | J205: 61.81 | K205: 0.16 | L205: 0.21 | M205: 304.12 | N205: 300.49 | O205: 357.58 | P205: 50.8 | Q205: 378.85 | R205: 1.51 | S205: 34.24 | T205: 41.36 | U205: 67.03
B206: Второй завтрак
A207: Пром. | B207: Молоко 2.5% | C207: 150 | D207: 4.4 | E207: 3.8 | F207: 7.2 | G207: 80 | H207: 0.06 | I207: 0.23 | J207: 33 | K207: 0 | L207: 1.95 | M207: 75 | N207: 219 | O207: 180 | P207: 21 | Q207: 135 | R207: 0.15 | S207: 13.5 | T207: 3 | U207: 30
B208: Итого за Второй завтрак | C208: 150 | D208: 4.4 | E208: 3.8 | F208: 7.2 | G208: 80 | H208: 0.06 | I208: 0.23 | J208: 33 | K208: 0 | L208: 1.95 | M208: 75 | N208: 219 | O208: 180 | P208: 21 | Q208: 135 | R208: 0.15 | S208: 13.5 | T208: 3 | U208: 30
B209: Обед
A210: 54-9з-2020 | B210: Салат из белокочанной капусты с морковью и яблоками и растительным маслом | C210: 50 | D210: 0.68 | E210: 5.08 | F210: 3.01 | G210: 60.5 | H210: 0.01 | I210: 0.02 | J210: 120.81 | K210: 0 | L210: 5 | M210: 56 | N210: 111 | O210: 17 | P210: 8 | Q210: 14 | R210: 0.4 | S210: 8.23 | T210: 0.1 | U210: 9.15
A211: 54-6с-2020 | B211: Суп картофельный с клецками | C211: 200 | D211: 4.6 | E211: 3.3 | F211: 11.4 | G211: 93.6 | H211: 0.05 | I211: 0.04 | J211: 101.43 | K211: 0.05 | L211: 3.69 | M211: 58.01 | N211: 222.12 | O211: 13.28 | P211: 12.74 | Q211: 35.97 | R211: 0.54 | S211: 10.28 | T211: 0.94 | U211: 21.22
A212: 54-11м-2020 | B212: Плов из говядины | C212: 120/30 | D212: 11.5 | E212: 11.1 | F212: 29 | G212: 261.6 | H212: 0.05 | I212: 0.09 | J212: 196.2 | K212: 0.08 | L212: 0.59 | M212: 207.54 | N212: 202.26 | O212: 87.76 | P212: 33 | Q212: 145.5 | R212: 1.66 | S212: 29.04 | T212: 5.52 | U212: 61.67
... 121 more rows
